bitfinex/quotes_ETHUSD_20250725
["timestamp","ask_amount","ask_price","bid_price","bid_amount"]
[1753467099767,26.5851169,3643.5,3643.4,0.001]
[1753467100371,24.78427307,3643.5,3643.4,0.001]
[1753467101219,24.33367307,3643.5,3643.4,0.001]
[1753467101526,24.52786488,3643.5,3643.4,0.001]
[1753467102367,24.07726488,3643.5,3643.4,0.001]
[1753467102718,24.52786488,3643.5,3643.4,0.001]
[1753467104104,24.52786488,3643.5,3643.4,0.001]
[1753467104590,24.66546488,3643.5,3643.4,0.001]
[1753467109610,4.27176934,3643.5,3643.4,0.001]
[1753467109814,10.08221369,3643.5,3643.4,0.9117]
[1753467110027,7.3376,3643.5,3643.4,0.9117]
[1753467110922,10.08221369,3643.5,3643.4,0.9117]
[1753467111531,5.88221369,3643.5,3643.4,0.9117]
[1753467111730,7.3376,3643.5,3643.4,0.9117]
[1753467112796,3.1376,3643.5,3643.4,0.9117]
[1753467112996,7.3376,3643.5,3643.4,0.9117]
[1753467113508,10.08221369,3643.5,3643.4,0.9117]
[1753467113914,7.3376,3643.5,3643.4,0.9117]
[1753467114431,7.3376,3643.5,3643.4,0.001]
[1753467114733,11.56926369,3643.5,3643.4,0.001]
[1753467115231,11.56926369,3643.5,3643.4,0.4868]
[1753467115534,10.08221369,3643.5,3643.4,0.4868]
[1753467117438,10.08221369,3643.5,3643.4,0.9272]
[1753467118336,10.08221369,3643.5,3643.4,0.4868]
[1753467120307,3.1376,3643.5,3643.4,0.9272]
[1753467120510,2.69909176,3644.9,3643.5,0.7674]
[1753467120713,0.002,3645.1,3644.2,2.74402529]
[1753467120714,0.1368,3644.4,3644.2,2.74402529]
[1753467121035,0.1368,3644.4,3644.1,0.1376]
[1753467121036,2.74411348,3644.2,3644.1,0.1376]
[1753467121193,4.2,3644.2,3644.1,0.9262]
[1753467121599,0.1368,3644.4,3644.2,0.7674]
[1753467121820,2.74363877,3644.8,3644.2,3.51148649]
[1753467122033,0.1368,3644.6,3644.2,0.7674]
[1753467122232,4.201,3644.5,3644.2,3.51146926]
[1753467122538,4.201,3644.5,3644.3,0.9262]
[1753467122915,4.201,3644.5,3644.4,0.9262]
[1753467123300,4.201,3644.6,3644.5,0.8148]
[1753467123499,2.74547479,3645.1,3644.5,0.8148]
[1753467123500,4.201,3644.8,3644.5,0.8148]
[1753467123696,0.002,3645.1,3644.6,0.9262]
[1753467123697,4.203,3645.1,3644.6,0.9262]
[1753467123896,0.1368,3645.0,3644.7,2.74368382]
[1753467124339,0.1368,3645.0,3644.8,0.9262]
[1753467124700,0.1368,3645.0,3644.5,0.8148]
[1753467124701,0.1368,3645.0,3644.6,2.74377887]
[1753467124901,0.1368,3645.0,3644.9,0.9262]
[1753467130049,2.88028422,3645.0,3644.9,0.9262]
[1753467130252,0.1368,3645.0,3644.9,0.9262]
[1753467130446,1.7838,3645.0,3644.9,0.9262]
[1753467130648,2.88028422,3645.0,3644.9,0.9262]
[1753467130955,0.1368,3645.0,3644.9,0.9262]
[1753467132052,0.1368,3645.0,3644.9,0.4858]
[1753467132650,2.74362108,3644.9,3644.5,0.8148]
[1753467132855,4.199,3644.9,3644.5,0.8148]
[1753467133064,4.199,3644.9,3644.6,0.4858]
[1753467133218,4.199,3644.9,3644.6,0.4404]
[1753467133418,4.199,3644.9,3644.7,0.4858]
[1753467134042,4.199,3644.9,3644.8,0.4858]
[1753467136750,0.002,3645.1,3644.8,0.9262]
[1753467136933,4.201,3645.1,3644.9,0.9262]
[1753467137134,7.201,3645.1,3645.0,0.9262]
[1753467137334,9.94440895,3645.1,3645.0,0.9262]
[1753467137540,9.94440895,3645.1,3645.0,0.4858]
[1753467138456,7.201,3645.1,3644.8,0.4858]
[1753467138655,7.201,3645.1,3644.9,0.4404]
[1753467138830,9.94442324,3645.1,3644.9,0.9262]
[1753467139029,9.94442324,3645.1,3644.9,0.4858]
[1753467139346,7.201,3645.1,3644.9,0.4858]
[1753467139748,7.201,3645.1,3644.7,2.88049735]
[1753467139951,7.201,3645.1,3645.0,0.4858]
[1753467141162,4.201,3645.1,3645.0,0.9262]
[1753467141564,0.002,3645.1,3645.0,1.6932]
[1753467141728,0.002,3645.1,3645.0,4.75922793]
[1753467141936,0.002,3645.1,3645.0,2.01574371]
[1753467142564,0.002,3645.1,3645.0,4.57348422]
[1753467143734,0.002,3645.1,3645.0,4.60091906]
[1753467145533,1e-08,3645.1,3645.0,7.60091906]
[1753467145733,1e-08,3645.1,3645.0,7.57348422]
[1753467145967,1e-08,3645.1,3645.0,8.12348422]
[1753467146134,1e-08,3645.1,3645.0,10.36730315]
[1753467146330,1e-08,3645.2,3645.1,6.53530895]
[1753467146535,1e-08,3645.2,3645.1,7.97060895]
[1753467147185,0.002,3646.5,3646.4,3.50813089]
[1753467147478,0.002,3646.5,3646.4,3.64493089]
[1753467147779,0.002,3646.5,3646.4,5.04601232]
[1753467151167,0.002,3646.6,3646.4,5.04601232]
[1753467151168,0.002,3646.6,3646.5,2.74235568]
[1753467151374,0.002,3646.6,3646.5,10.75205568]
[1753467151571,0.002,3646.6,3646.5,11.63735568]
[1753467152141,0.002,3646.6,3646.5,12.18735568]
[1753467152342,0.002,3646.6,3646.5,14.01710592]
[1753467152588,1e-08,3646.6,3646.5,14.01710592]
[1753467153074,1e-08,3646.8,3646.7,4.10490528]
[1753467153293,1e-08,3646.8,3646.7,7.13232733]
[1753467153446,1e-08,3646.8,3646.7,8.12700528]
[1753467153644,1e-08,3646.8,3646.7,8.71038397]
[1753467153877,0.002,3647.3,3647.2,2.74182934]
[1753467154049,0.002,3647.3,3647.2,10.77794763]
[1753467154256,0.002,3647.3,3647.2,10.88732934]
[1753467154480,0.002,3647.3,3647.2,11.77262934]
[1753467154676,0.002,3647.3,3647.2,12.26098647]
[1753467154841,0.002,3648.0,3647.7,3.55415351]
[1753467155046,0.002,3648.0,3647.7,10.91436804]
[1753467155253,0.002,3648.0,3647.7,10.88695351]
[1753467155479,0.002,3648.0,3647.7,11.77225351]
[1753467155680,0.002,3648.0,3647.7,13.22363284]
[1753467156387,0.002,3648.0,3647.7,13.77363284]
[1753467160178,0.002,3648.0,3647.9,2.74130321]
[1753467160502,1e-08,3648.0,3647.9,10.75051624]
[1753467160674,0.4812,3650.4,3649.9,0.7878]
[1753467160876,1.7432,3650.7,3650.0,4.194]
[1753467161123,1.7432,3650.7,3649.4,0.7878]
[1753467161124,0.7658,3650.5,3650.1,4.196]
[1753467161325,0.9202,3650.4,3650.1,4.196]
[1753467161620,0.9202,3650.3,3650.1,6.93563815]
[1753467161765,0.7658,3650.5,3650.1,6.93563815]
[1753467161766,0.9202,3650.2,3650.1,4.196]
[1753467161969,0.9202,3650.2,3650.1,6.93564136]
[1753467162394,0.9202,3650.2,3650.1,4.196]
[1753467163419,0.9202,3650.2,3650.1,6.93565096]
[1753467164008,0.9202,3650.2,3650.1,4.196]
[1753467167091,0.9202,3650.2,3650.1,6.93565096]
[1753467167291,0.9202,3650.2,3650.1,6.93265096]
[1753467167698,0.9202,3650.2,3650.1,4.193]
[1753467167897,0.9202,3650.2,3650.0,2.73972203]
[1753467168098,0.9202,3650.1,3649.5,2.7400529]
[1753467168272,0.9202,3650.0,3649.6,6.93301715]
[1753467168472,2.73957905,3650.2,3649.6,6.93301715]
[1753467168787,0.7945,3649.8,3649.1,0.7968]
[1753467168992,0.9202,3649.7,3649.4,2.74012628]
[1753467169188,2.73965479,3650.1,3649.4,2.74012628]
[1753467169189,0.4812,3650.0,3649.5,4.193]
[1753467169507,0.4812,3650.0,3649.6,2.7400263]
[1753467169681,0.4812,3650.0,3649.7,4.194]
[1753467169878,0.9202,3649.9,3648.8,2.74059343]
[1753467170105,3.66007615,3649.8,3649.2,4.194]
[1753467170306,0.9202,3649.7,3649.2,6.93431781]
[1753467170504,0.9202,3649.6,3649.2,4.194]
[1753467170685,0.9202,3649.6,3648.8,0.8142]
[1753467170686,2.7400263,3649.6,3649.5,0.1368]
[1753467170886,0.7845,3649.9,3648.9,2.74051824]
[1753467170887,2.74014453,3649.5,3649.3,4.194]
[1753467171210,0.7845,3649.6,3649.2,4.194]
[1753467171409,0.8106,3649.9,3649.2,4.194]
[1753467171713,0.9202,3649.8,3649.4,2.87695818]
[1753467172014,0.8106,3649.9,3649.7,0.1368]
[1753467172212,3.002,3650.2,3649.7,0.1368]
[1753467172413,1.64089104,3650.2,3649.7,0.1368]
[1753467172598,2.73973614,3650.0,3649.7,0.1368]
[1753467172801,3.9202,3650.1,3649.7,0.1368]
[1753467173001,2.73992703,3649.8,3649.5,4.3348]
[1753467173201,0.9202,3649.7,3649.5,4.3348]
[1753467173818,0.439,3649.7,3649.5,4.3348]
[1753467174018,0.9648,3649.6,3649.5,4.3348]
[1753467174520,0.9648,3649.6,3649.4,0.1368]
[1753467174688,2.73996326,3649.7,3649.4,0.1368]
[1753467174882,0.9648,3649.5,3648.7,3.55828611]
[1753467175107,0.7773,3649.3,3649.1,0.1368]
[1753467175420,1.4081,3649.6,3649.1,4.2]
[1753467175716,0.494,3649.5,3649.3,0.1368]
[1753467176084,0.9648,3649.5,3649.3,0.1368]
[1753467176295,0.494,3649.4,3649.3,0.1368]
[1753467176495,0.9648,3649.4,3649.3,0.1368]
[1753467177824,0.494,3649.7,3649.3,0.1368]
[1753467177988,0.9648,3649.6,3649.3,0.1368]
[1753467178195,0.9648,3649.6,3649.3,2.87699728]
[1753467178488,0.9648,3649.9,3649.3,3.20685145]
[1753467178703,0.494,3649.9,3649.5,2.87690059]
[1753467179037,0.9519,3650.2,3649.8,2.73982942]
[1753467179206,0.8151,3650.2,3649.8,6.93987236]
[1753467179410,0.002,3650.2,3650.1,2.87645096]
[1753467179918,0.002,3650.2,3650.1,7.07745096]
[1753467180432,0.002,3650.2,3650.1,4.3378]
[1753467180808,0.002,3650.2,3650.1,7.07745096]
[1753467181194,0.002,3650.2,3650.1,4.3378]
[1753467181394,0.496,3650.2,3650.1,2.87645096]
[1753467181618,0.9668,3650.2,3650.1,4.3358]
[1753467181898,0.9668,3650.2,3650.1,0.1368]
[1753467182529,1.14479,3650.2,3650.0,4.199]
[1753467182733,0.9648,3650.1,3650.0,4.199]
[1753467183133,0.9648,3650.1,3649.5,2.7400858]
[1753467183134,0.7544,3650.0,3649.5,2.7400858]
[1753467183300,0.9648,3649.9,3649.7,4.3358]
[1753467183502,0.9648,3649.8,3649.7,0.1368]
[1753467183950,0.9648,3649.8,3649.3,4.2]
[1753467184098,0.9648,3649.7,3649.3,4.3368]
[1753467184298,0.9648,3649.6,3649.3,4.3368]
[1753467184646,0.1368,3649.9,3649.3,4.3368]
[1753467184647,0.9648,3649.5,3649.3,4.3368]
[1753467184814,2.73995985,3649.7,3649.3,4.3368]
[1753467185015,1.7192,3649.4,3649.2,4.199]
[1753467185223,1.7192,3649.4,3649.1,4.199]
[1753467186370,0.9648,3649.3,3649.0,4.201]
[1753467186507,0.9648,3649.2,3649.0,4.201]
[1753467186712,0.9648,3649.1,3649.0,4.201]
[1753467186963,0.9648,3649.1,3648.9,0.1368]
[1753467187467,0.494,3649.0,3648.6,6.94077728]
[1753467187615,0.494,3649.0,3648.8,2.8774214]
[1753467188145,0.494,3649.0,3648.8,0.1368]
[1753467188528,0.494,3649.0,3648.8,2.87739935]
[1753467188915,0.494,3649.0,3648.9,2.74055194]
[1753467189116,0.494,3649.0,3648.8,2.87740322]
[1753467189555,1.2484,3649.4,3648.8,0.1368]
[1753467189871,0.1368,3649.5,3648.9,0.4666]
[1753467190060,0.494,3649.7,3649.0,0.4671]
[1753467190061,3.7736,3649.7,3649.0,0.4671]
[1753467190346,4.3358,3649.8,3649.5,2.74009136]
[1753467190523,0.1368,3649.8,3649.5,0.4666]
[1753467190942,0.15371321,3650.1,3649.7,3.50445122]
[1753467191126,0.002,3650.2,3650.1,2.73965096]
[1753467191962,0.9668,3650.2,3649.8,4.202]
[1753467192265,0.9648,3650.1,3649.8,4.202]
[1753467192943,0.002,3650.2,3649.8,4.202]
[1753467193171,0.002,3650.2,3650.0,2.73969638]
[1753467193371,0.002,3650.2,3650.1,2.73965096]
[1753467193784,0.002,3650.2,3650.1,3.34305096]
[1753467194577,0.002,3650.2,3650.1,0.1368]
[1753467195238,0.002,3650.2,3650.1,2.87645096]
[1753467196179,0.002,3650.2,3650.1,3.34305096]
[1753467196339,0.496,3650.2,3649.8,6.94285605]
[1753467196540,0.494,3650.1,3649.9,0.1368]
[1753467196845,0.494,3650.1,3649.9,2.8766004]
[1753467197053,0.494,3650.1,3649.9,0.1368]
[1753467197942,0.4728,3650.2,3649.9,0.1368]
[1753467198357,0.9668,3650.2,3649.9,0.1368]
[1753467198555,0.002,3650.2,3649.9,0.1368]
[1753467198758,1.1016,3650.1,3649.6,7.0798065]
[1753467198959,1.1016,3650.1,3649.7,2.73995068]
[1753467199773,0.002,3650.2,3650.0,2.73966325]
[1753467199977,0.002,3650.2,3649.9,0.1368]
[1753467200279,0.002,3650.2,3649.9,3.81030009]
[1753467200445,0.002,3650.2,3650.1,2.73965096]
[1753467201485,0.002,3650.2,3650.0,3.20630757]
[1753467201680,0.002,3650.2,3649.9,2.87656508]
[1753467201882,0.002,3650.2,3649.9,0.1368]
[1753467202463,0.002,3650.2,3649.9,2.87657755]
[1753467203074,0.002,3650.2,3649.9,0.1368]
[1753467203280,0.002,3650.2,3650.1,2.73965096]
[1753467204358,0.002,3650.2,3650.1,3.64825096]
[1753467204524,0.002,3650.2,3650.1,3.78505096]
[1753467205015,0.002,3650.2,3650.1,7.98605096]
[1753467205600,0.002,3650.2,3650.1,9.13675963]
[1753467206314,0.002,3650.2,3650.1,9.95985963]
[1753467208296,0.002,3651.0,3650.9,2.73905064]
[1753467208663,0.002,3651.0,3650.9,3.78445064]
[1753467209921,0.002,3651.0,3650.9,0.1368]
[1753467210216,0.932,3651.0,3650.9,4.201]
[1753467211069,0.002,3651.0,3650.8,2.87586459]
[1753467211268,0.002,3651.0,3650.8,4.3378]
[1753467211797,4.46805064,3650.9,3650.3,2.73949247]
[1753467211971,4.46805064,3650.9,3650.4,4.3378]
[1753467211972,0.93,3650.8,3650.4,4.3378]
[1753467212172,0.93,3650.7,3650.4,0.1368]
[1753467212572,3.67486911,3650.9,3650.4,0.1368]
[1753467212803,4.13266911,3650.9,3650.4,0.1368]
[1753467212990,0.9358,3650.9,3650.5,0.4737]
[1753467213193,0.002,3651.0,3650.7,2.73919684]
[1753467213407,0.002,3651.0,3650.6,8.74735962]
[1753467213607,0.002,3651.0,3650.7,0.4737]
[1753467213907,0.002,3651.0,3650.7,4.6747]
[1753467214516,0.002,3651.0,3650.7,7.41389354]
[1753467214718,0.002,3651.0,3650.8,3.21281997]
[1753467215840,0.002,3651.0,3650.9,7.84865064]
[1753467216197,0.002,3651.0,3650.9,7.41375064]
[1753467216403,0.002,3651.0,3650.9,7.84865064]
[1753467217434,0.002,3651.0,3650.9,9.76048432]
[1753467222229,0.002,3651.7,3651.6,2.73852557]
[1753467222430,0.002,3651.7,3651.6,7.89122557]
[1753467222629,0.002,3651.7,3651.6,8.79982557]
[1753467223469,0.002,3651.7,3651.6,7.89122557]
[1753467223650,0.15344801,3653.5,3652.8,0.7798]
[1753467223825,0.4578,3653.7,3653.1,2.73738497]
[1753467224035,3.61124801,3653.7,3653.2,4.201]
[1753467224235,0.4578,3653.6,3653.2,4.201]
[1753467224468,2.73735715,3653.2,3652.8,4.201]
[1753467224677,0.4578,3653.1,3652.8,4.201]
[1753467224862,0.95224801,3653.4,3652.8,4.201]
[1753467225058,0.4578,3653.2,3652.8,4.201]
[1753467225259,2.73725125,3653.3,3652.8,4.201]
[1753467225466,0.4578,3653.1,3652.3,0.7798]
[1753467225782,0.4578,3653.1,3651.8,2.73832037]
[1753467225783,2.73790398,3652.5,3651.8,2.73832037]
[1753467225958,0.7961,3652.9,3651.9,4.202]
[1753467225959,3.19572932,3652.4,3651.9,4.202]
[1753467226165,2.738155,3652.1,3651.9,4.202]
[1753467226359,0.7719,3652.2,3651.3,0.7979]
[1753467226685,0.93,3652.0,3651.4,4.202]
[1753467226885,2.73856264,3651.6,3651.2,4.204]
[1753467227181,0.4578,3651.6,3651.2,4.204]
[1753467227749,2.73861195,3651.5,3651.2,4.204]
[1753467227947,3.19641195,3651.5,3651.2,4.204]
[1753467228383,0.4578,3651.5,3651.2,4.204]
[1753467228887,3.19640924,3651.5,3651.2,4.204]
[1753467229051,0.4578,3651.5,3651.2,4.204]
[1753467229252,2.73860523,3651.5,3651.2,4.204]
[1753467229452,0.4578,3651.4,3651.2,4.204]
[1753467229654,0.4578,3651.4,3650.6,0.7663]
[1753467229979,1.2739,3651.4,3650.7,4.203]
[1753467230180,4.01237148,3651.7,3651.0,2.73895275]
[1753467230377,4.01237347,3651.7,3651.1,4.203]
[1753467230580,0.8161,3652.0,3651.2,3.17370178]
[1753467230885,0.8161,3652.0,3651.2,0.4349]
[1753467231287,0.4578,3652.3,3651.6,2.73847713]
[1753467231487,0.4578,3652.3,3651.7,4.204]
[1753467231488,1.2739,3652.3,3651.7,4.204]
[1753467231696,1.2739,3652.3,3651.8,6.94237215]
[1753467231993,0.4578,3652.2,3651.8,4.204]
[1753467232194,3.66812655,3652.2,3651.8,4.204]
[1753467232376,0.4578,3652.1,3651.7,2.73839117]
[1753467232580,0.4578,3652.1,3651.9,4.204]
[1753467233255,0.4578,3652.0,3651.9,4.204]
[1753467233572,0.8027,3651.9,3651.2,0.1368]
[1753467233784,2.73852557,3651.6,3651.2,0.1368]
[1753467233955,0.1368,3651.7,3651.2,0.1368]
[1753467234292,0.8027,3651.9,3651.5,0.1368]
[1753467234511,5.73839134,3651.8,3651.5,0.1368]
[1753467234711,2.73837749,3651.8,3651.5,0.1368]
[1753467234915,0.9487,3651.7,3651.5,0.1368]
[1753467235118,3.68717237,3651.7,3651.5,0.1368]
[1753467235338,3.68717237,3651.7,3650.6,0.4605]
[1753467235339,1.7711,3651.6,3650.2,3.55527417]
[1753467235620,0.4589,3651.5,3650.8,0.1368]
[1753467235911,2.73895897,3651.1,3650.7,0.1368]
[1753467236118,0.4589,3651.1,3650.7,0.1368]
[1753467236414,3.19780204,3651.1,3650.7,0.1368]
[1753467236619,3.19789944,3651.0,3650.7,0.1368]
[1753467236992,0.4589,3651.0,3650.7,0.1368]
[1753467237542,2.73891914,3651.1,3650.7,0.1368]
[1753467238023,3.19781914,3651.1,3650.7,0.1368]
[1753467238917,0.1368,3651.2,3650.7,0.1368]
[1753467239117,0.4589,3651.0,3650.7,0.1368]
[1753467239418,2.73912567,3650.8,3650.4,0.1368]
[1753467239622,0.4589,3650.8,3650.4,0.1368]
[1753467239926,1.2447,3650.7,3650.4,0.1368]
[1753467240414,3.98390438,3650.7,3650.4,0.1368]
[1753467240618,0.4589,3650.6,3650.4,0.1368]
[1753467240816,1.2649,3651.5,3650.5,0.8123]
[1753467241022,0.1368,3651.2,3650.5,0.1368]
[1753467241320,2.7389006,3651.1,3650.7,0.1368]
[1753467241709,3.1978006,3651.1,3650.7,0.1368]
[1753467241916,3.6876006,3651.1,3650.7,0.1368]
[1753467242140,0.1368,3651.2,3650.8,2.73906084]
[1753467242349,5.73876586,3651.3,3650.9,0.1368]
[1753467242637,0.9487,3651.3,3650.9,2.87585051]
[1753467242924,0.806,3652.2,3651.6,2.73847073]
[1753467243083,3.0,3652.2,3651.7,2.73844816]
[1753467243287,0.6266,3652.3,3651.8,3.37351059]
[1753467243490,3.6266,3652.3,3651.8,0.6352]
[1753467243692,0.6266,3652.3,3651.8,0.6352]
[1753467243894,3.2279266,3652.2,3651.8,0.1368]
[1753467244220,0.1368,3652.3,3651.8,0.1368]
[1753467244221,0.1368,3652.3,3651.8,0.9461]
[1753467244422,0.1368,3652.5,3652.0,2.87501147]
[1753467244629,3.0,3652.6,3652.2,0.1368]
[1753467244925,7.59571987,3652.6,3652.2,0.1368]
[1753467245094,3.90919,3652.6,3652.2,0.1368]
[1753467245431,0.7784,3652.9,3652.4,2.73787535]
[1753467245618,3.0,3652.8,3652.5,0.1368]
[1753467246137,3.4898,3652.8,3652.5,0.1368]
[1753467246636,0.1368,3653.0,3652.8,2.73759827]
[1753467246831,0.4898,3653.4,3652.6,0.8093]
[1753467247001,0.002,3653.5,3652.6,2.73775404]
[1753467247002,3.68595125,3653.3,3652.6,2.73775404]
[1753467247200,3.68595125,3653.3,3652.4,2.73792187]
[1753467247201,0.64350556,3653.2,3652.7,2.73769801]
[1753467247396,0.9487,3653.1,3652.4,0.4984]
[1753467247707,2.73753536,3653.0,3652.4,0.4984]
[1753467248107,2.73755503,3652.9,3652.4,0.4984]
[1753467248308,2.73755503,3652.9,3651.9,6.9662364]
[1753467248309,2.42313895,3652.9,3651.9,2.73830061]
[1753467248513,4.7208,3652.8,3651.9,3.23670061]
[1753467248721,1.10243027,3652.7,3651.8,0.8062]
[1753467249035,2.73785482,3652.5,3651.8,2.73831495]
[1753467249239,2.73792699,3652.4,3651.8,2.73831495]
[1753467249399,2.73792699,3652.4,3651.7,7.46783283]
[1753467249617,3.68670827,3652.3,3651.7,4.231]
[1753467249948,2.73824799,3652.0,3651.4,2.73866782]
[1753467250147,0.9487,3651.9,3651.2,4.23]
[1753467250314,2.7385716,3651.6,3650.9,0.33743707]
[1753467250513,7.91807807,3651.8,3651.0,0.35750308]
[1753467250514,0.9487,3651.5,3651.0,0.35750308]
[1753467250743,3.68732059,3651.5,3651.0,0.35750308]
[1753467250910,0.9487,3651.4,3650.7,4.231]
[1753467251113,2.73879892,3651.3,3650.7,4.231]
[1753467251345,2.73879892,3651.3,3650.6,4.01302636]
[1753467251545,4.48510343,3651.4,3650.7,2.73918792]
[1753467251712,2.73877561,3651.3,3650.7,1.09843348]
[1753467251913,1.7464,3651.4,3650.7,1.09843348]
[1753467252135,4.48509603,3651.4,3650.8,2.73911796]
[1753467252313,4.48509603,3651.4,3650.9,2.73900479]
[1753467252314,1.7464,3651.4,3650.9,2.73900479]
[1753467252514,3.0,3651.9,3651.4,2.73865456]
[1753467252714,5.73828459,3652.0,3651.4,0.4984]
[1753467253154,5.39407604,3652.0,3651.3,2.73871938]
[1753467253353,3.22810385,3651.9,3651.3,2.73871938]
[1753467253520,3.22810385,3651.9,3651.2,2.73877248]
[1753467253717,0.4898,3651.8,3651.3,2.73874157]
[1753467253916,5.73825462,3652.0,3651.3,3.33634236]
[1753467254221,0.4898,3651.7,3651.1,2.7389006]
[1753467254627,3.22829806,3651.7,3651.0,0.4984]
[1753467254852,3.0,3652.0,3650.9,4.231]
[1753467255058,2.73861178,3651.5,3650.9,2.73904816]
[1753467255661,7.92423017,3651.6,3651.0,2.73896136]
[1753467255817,5.1857,3651.6,3650.8,3.2375164]
[1753467256014,2.73840112,3651.8,3650.7,1.09843348]
[1753467256329,4.238,3651.7,3651.2,2.73880031]
[1753467256511,4.238,3651.7,3650.6,0.7754]
[1753467256512,0.9487,3651.6,3650.6,0.7754]
[1753467256716,2.73888558,3651.2,3650.5,3.23769571]
[1753467256917,2.73905064,3650.9,3650.8,0.1368]
[1753467257127,2.73905064,3650.9,3650.0,0.4605]
[1753467257128,2.73925535,3650.7,3650.0,2.73972449]
[1753467257433,3.22908881,3650.6,3650.2,0.1368]
[1753467257863,0.9487,3650.5,3650.2,0.1368]
[1753467258449,3.68812581,3650.4,3649.7,0.8231]
[1753467258649,0.9487,3650.4,3650.0,0.1368]
[1753467258859,0.4898,3650.4,3650.0,0.1368]
[1753467259040,0.5957,3650.7,3650.0,0.1368]
[1753467259372,4.242,3650.6,3650.3,0.1368]
[1753467259586,2.87593525,3650.8,3650.3,0.1368]
[1753467259788,0.1368,3650.8,3650.4,0.4984]
[1753467260094,4.243,3651.0,3650.7,2.875999]
[1753467260577,2.87560189,3651.3,3650.7,0.1368]
[1753467260764,3.0,3651.1,3650.0,1.2678]
[1753467260961,0.1368,3650.8,3650.3,2.87629097]
[1753467261269,4.246,3651.0,3650.4,3.72571301]
[1753467261468,6.22856614,3651.3,3650.7,2.7391716]
[1753467261669,3.1368,3651.3,3650.8,3.23752235]
[1753467261844,4.3838,3651.3,3650.9,0.9589]
[1753467262050,4.3838,3651.5,3651.0,1.0957]
[1753467262283,0.1368,3651.5,3651.1,0.4984]
[1753467262483,4.247,3651.5,3651.1,0.4984]
[1753467262683,4.247,3651.5,3651.2,0.1368]
[1753467263482,2.73875058,3651.3,3651.2,0.1368]
[1753467263649,2.87555058,3651.3,3650.7,0.1368]
[1753467263852,4.246,3651.2,3650.7,0.1368]
[1753467264084,3.0,3651.6,3651.1,2.73884286]
[1753467264288,4.246,3651.4,3651.2,0.636]
[1753467264473,4.246,3651.4,3651.2,3.37480171]
[1753467264683,1.2565,3652.0,3651.2,0.9658]
[1753467264908,0.9314,3652.0,3651.5,2.73853633]
[1753467265089,0.1368,3652.0,3651.5,2.87538857]
[1753467265399,4.7073,3652.3,3651.7,2.73838536]
[1753467265566,4.3838,3652.3,3651.8,2.8751648]
[1753467265766,3.0,3652.2,3651.9,0.4992]
[1753467266070,3.0,3652.2,3651.8,3.3478648]
[1753467266270,3.0,3652.2,3651.8,1.1087]
[1753467266271,4.247,3652.2,3651.8,1.1087]
[1753467266466,4.247,3652.2,3651.8,3.37435271]
[1753467267696,0.1368,3652.4,3651.8,3.37434793]
[1753467268015,4.245,3652.3,3652.0,0.1368]
[1753467268165,3.5987,3652.5,3652.1,2.73813134]
[1753467268367,4.245,3652.4,3652.0,0.1368]
[1753467268562,4.245,3652.4,3652.1,0.4992]
[1753467268793,0.7946,3652.6,3652.1,0.4992]
[1753467268997,4.244,3652.5,3652.1,0.4992]
[1753467269397,4.244,3652.4,3652.1,0.4992]
[1753467269793,4.244,3652.4,3652.0,0.6095]
[1753467270001,4.7059,3652.4,3652.0,0.1368]
[1753467270309,0.4619,3652.4,3652.0,0.1368]
[1753467270605,4.244,3652.4,3652.0,0.1368]
[1753467270766,4.244,3652.4,3652.0,2.87501707]
[1753467270972,4.244,3652.4,3652.0,3.37421707]
[1753467271268,1.2549,3652.6,3652.0,0.1368]
[1753467271592,0.5987,3652.4,3651.9,0.1368]
[1753467271791,0.55,3652.3,3651.3,4.242]
[1753467272102,0.1368,3652.0,3651.5,0.1368]
[1753467272310,1.059,3652.0,3651.5,0.1368]
[1753467272602,0.4619,3651.9,3651.5,0.1368]
[1753467272778,1.059,3652.0,3651.5,0.636]
[1753467272983,0.1368,3652.0,3651.5,2.87538593]
[1753467273372,0.1368,3652.0,3651.6,0.4992]
[1753467273593,2.87502721,3652.0,3651.6,0.4992]
[1753467273906,3.33694445,3652.0,3651.5,0.1368]
[1753467274110,2.73830177,3651.9,3651.5,0.1368]
[1753467274271,3.20020177,3651.9,3651.5,0.1368]
[1753467274699,0.9222,3651.9,3651.5,0.1368]
[1753467275035,0.4619,3651.9,3651.5,0.1368]
[1753467275437,0.4619,3651.9,3651.5,2.87539773]
[1753467275635,0.1368,3652.0,3651.5,2.87539773]
[1753467275935,2.87503081,3652.0,3651.5,0.636]
[1753467276139,0.1368,3652.0,3651.5,3.37455376]
[1753467276332,2.87508608,3652.0,3651.5,0.636]
[1753467276700,0.5987,3652.0,3651.5,3.37457688]
[1753467276932,0.1368,3652.0,3651.5,2.87537688]
[1753467277137,0.1368,3652.0,3651.6,0.4992]
[1753467277639,4.242,3652.1,3651.7,0.4992]
[1753467277834,4.242,3652.1,3651.7,3.37442579]
[1753467278039,4.242,3652.1,3651.8,0.4992]
[1753467278339,4.242,3652.1,3651.8,2.7383737]
[1753467278507,0.1368,3652.3,3651.8,0.7613]
[1753467278708,4.236,3652.3,3652.0,2.73817013]
[1753467278910,4.236,3652.3,3652.0,3.23737013]
[1753467279330,0.1368,3652.7,3652.1,0.4992]
[1753467279532,4.237,3652.6,3652.3,0.1368]
[1753467279751,0.15369652,3652.5,3652.3,0.1368]
[1753467280165,0.15369652,3652.5,3652.3,2.87475485]
[1753467280330,0.15369652,3652.5,3652.4,0.4992]
[1753467280952,4.237,3652.6,3652.4,0.4992]